Workbook

Sheet 19、全市公共预算收入
A1: 附表19
A2: 全市2020年地方一般公共预算收入表
C3: 单位：万元
A4: 科目 | B4: 项 目 | C4: 预算数 | D4: 备注
B5: 一般预算收入合计 | C5: =C6+C22 -> 516069
A6: 101 | B6: 税收收入 | C6: =SUM(C7:C21) -> 401287
A7: 10101 | B7: 增值税 | C7: 172994
A8: 10104 | B8: 企业所得税 | C8: 43922
A9: 10106 | B9: 个人所得税 | C9: 12601
A10: 10107 | B10: 资源税 | C10: 9527
A11: 10109 | B11: 城市维护建设税 | C11: 30188
A12: 10110 | B12: 房产税 | C12: 10214
A13: 10111 | B13: 印花税 | C13: 4670
A14: 10112 | B14: 城镇土地使用税 | C14: 9985
A15: 10113 | B15: 土地增值税 | C15: 35577
A16: 10114 | B16: 车船税 | C16: 7025
A17: 10118 | B17: 耕地占用税 | C17: 34010
A18: 10119 | B18: 契税 | C18: 29580
A19: 10120 | B19: 烟叶税 | C19: 0
A20: 10121 | B20: 环境保护税 | C20: 946
A21: 10199 | B21: 其他税收收入 | C21: 49
A22: 103 | B22: 非税收入 | C22: =SUM(C23:C30) -> 114782
A23: 10302 | B23: 专项收入 | C23: 22289
A24: 10304 | B24: 行政事业性收费收入 | C24: 39201
A25: 10305 | B25: 罚没收入 | C25: 23882
A26: 10306 | B26: 国有资本经营收入 | C26: 0
A27: 10307 | B27: 国有资源（资产）有偿使用收入 | C27: 25817
A28: 10308 | B28: 捐赠收入 | C28: 2
A29: 10309 | B29: 政府住房基金收入 | C29: 2392
A30: 10399 | B30: 其他收入 | C30: 1198

Sheet 20、全市公共预算支出
A1: 附表20
A2: 全市2020年一般公共预算支出表
C3: 单位:万元
A4: 科目编码 | B4: 科目名称 | C4: 金额
A6: 201 | B6: 一、一般公共服务支出 | C6: 215423
A7: 204 | B7: 二、公共安全支出 | C7: 64035
A8: 205 | B8: 三、教育支出 | C8: 250015
A9: 206 | B9: 四、科学技术支出 | C9: 19679
A10: 207 | B10: 五、文化旅游体育与传媒支出 | C10: 18038
A11: 208 | B11: 六、社会保障和就业支出 | C11: 275006
A12: 210 | B12: 七、卫生健康支出 | C12: 180675
A13: 211 | B13: 八、节能环保支出 | C13: 15989
A14: 212 | B14: 九、城乡社区支出 | C14: 63310
A15: 213 | B15: 十、农林水支出 | C15: 147610
A16: 214 | B16: 十一、交通运输支出 | C16: 112648
A17: 215 | B17: 十二、资源勘探信息等支出 | C17: 29790
A18: 216 | B18: 十三、商业服务业等支出 | C18: 3993
A19: 217 | B19: 十四、金融支出 | C19: 0
A20: 219 | B20: 十五、援助其他地区支出 | C20: 216
A21: 220 | B21: 十六、自然资源海洋气象等支出 | C21: 19198
A22: 221 | B22: 十七、住房保障支出 | C22: 39856
A23: 222 | B23: 十八、粮油物资储备支出 | C23: 5202
A24: 224 | B24: 十九、灾害防治及应急管理支出 | C24: 9432
A25: 227 | B25: 二十、预备费 | C25: 7300
A26: 229 | B26: 二十一、其他支出 | C26: 78922
A27: 232 | B27: 二十二、债务付息支出 | C27: 18096
A28: 233 | B28: 二十三、债务发行费用支出 | C28: 70
B30: 支 出 合 计 | C30: =SUM(C6:C29) -> 1574504

Sheet 21、本级公共预算收入
A1: 附表21
A2: 市本级2020年一般公共预算收入明细表
C3: 单位：万元
A4: 科目 | B4: 项 目 | C4: 预算数 | D4: 备注
B5: 一、市本级一般公共预算收入 | C5: =C6+C23 -> 108997
A6: 101 | B6: （一）税收收入 | C6: =SUM(C7:C22) -> 77085
A7: 10101 | B7: 增值税 | C7: 24411
A8: 10103 | B8: 营业税 | C8: 0
A9: 10104 | B9: 企业所得税 | C9: 12086
A10: 10106 | B10: 个人所得税 | C10: 3437
A11: 10107 | B11: 资源税 | C11: 0
A12: 10109 | B12: 城市维护建设税 | C12: 5388
A13: 10110 | B13: 房产税 | C13: 2533
A14: 10111 | B14: 印花税 | C14: 1000
A15: 10112 | B15: 城镇土地使用税 | C15: 1105
A16: 10113 | B16: 土地增值税 | C16: 11991
A17: 10114 | B17: 车船税 | C17: 4294
A18: 10118 | B18: 耕地占用税 | C18: 6169
A19: 10119 | B19: 契税 | C19: 4589
A20: 10120 | B20: 烟叶税 | C20: 0
A21: 10121 | B21: 环境保护税 | C21: 36
A22: 10199 | B22: 其他税收收入 | C22: 48
A23: 103 | B23: （二）非税收入 | C23: =SUM(C24:C31) -> 31912
A24: 10302 | B24: 专项收入 | C24: 5295
A25: 10304 | B25: 行政事业性收费收入 | C25: 7862
A26: 10305 | B26: 罚没收入 | C26: 7524
A27: 10306 | B27: 国有资本经营收入 | C27: 0
A28: 10307 | B28: 国有资源（资产）有偿使用收入 | C28: 8268
A29: 10308 | B29: 捐赠收入 | C29: 2
A30: 10309 | B30: 政府住房基金收入 | C30: 2192
A31: 10399 | B31: 其他收入 | C31: 768
A32: 110 | B32: 二、转移性收入 | C32: =C33+C35+C70+C91+C94+C97 -> 213974
A33: 11001 | B33: （一）返还性收入 | C33: =SUM(C34:C34) -> 28518
A34: 1100199 | B34: 其它返还性收入 | C34: 28518
A35: 11002 | B35: （二）一般性转移支付收入 | C35: =SUM(C36:C69) -> 77410
A36: 1100202 | B36: 均衡性转移支付收入 | C36: 2357
A37: 1100207 | B37: 县级基本财力保障机制奖补资金收入 | C37: 10865
A38: 1100208 | B38: 结算补助收入 | C38: -27459
A39: 1100299 | B39: 激励性转移支付收入 | C39: 1672
A40: 11002 | B40: 政策性转移支付收入 | C40: 34341
A41: 1100215 | B41: 成品油税费改革转移支付补助收入 | C41: 3509
A42: 1100220 | B42: 基层公检法司转移支付收入 | C42: 3958
A43: 1100221 | B43: 城乡义务教育转移支付收入 | C43: 734
A44: 1100222 | B44: 基本养老金转移支付收入
A45: 1100225 | B45: 产粮大县奖励资金收入 | C45: 130
A46: 1100226 | B46: 重点生态功能区转移支付收入
A47: 1100227 | B47: 固定数额补助收入 | C47: 16611
A48: 1100228 | B48: 革命老区转移支付收入
A49: 1100241 | B49: 一般公共服务共同财政事权转移支付收入
A50: 1100242 | B50: 外交共同财政事权转移支付收入
A51: 1100243 | B51: 国防支出共同财政事权转移支付收入
A52: 1100244 | B52: 公共安全共同财政事权转移支付收入
A53: 1100245 | B53: 教育共同财政事权转移支付收入
A54: 1100246 | B54: 科学技术共同财政事权转移支付收入
A55: 1100247 | B55: 文化旅游体育与传媒共同财政事权转移支付收入
A56: 1100248 | B56: 社会保障和就业共同财政事权转移支付收入 | C56: 16572
A57: 1100249 | B57: 卫生健康共同财政事权转移支付收入
A58: 1100250 | B58: 节能环保 共同财政事权转移支付收入 | C58: 2813
A59: 1100251 | B59: 城乡社区共同财政事权转移支付收入
A60: 1100252 | B60: 农林水 共同财政事权转移支付收入 | C60: 1307
A61: 1100253 | B61: 交通运输 共同财政事权转移支付收入
A62: 1100254 | B62: 资源勘探信息等共同财政事权转移支付收入
A63: 1100255 | B63: 商业服务业等 共同财政事权转移支付收入
A64: 1100256 | B64: 金融共同财政事权转移支付收入
A65: 1100257 | B65: 自然资源海洋气象等共同财政事权转移支付收入
A66: 1100258 | B66: 住房保障共同财政事权转移支付收入
A67: 1100259 | B67: 粮油物资储备共同财政事权转移支付收入
A68: 1100260 | B68: 其他共同财政事权转移支付收入
A69: 1100299 | B69: 其他一般性转移支付收入 | C69: 10000
A70: 11003 | B70: （三）专项转移支付收入 | C70: =SUM(C71:C90) -> 42219
A71: 1100301 | B71: 一般公共服务 | C71: 1214
A72: 1100302 | B72: 外交
A73: 1100303 | B73: 国防支出 | C73: 217
A74: 1100304 | B74: 公共安全
A75: 1100305 | B75: 教育 | C75: 2642
A76: 1100306 | B76: 科学技术
A77: 1100307 | B77: 文化旅游体育与传媒 | C77: 3322
A78: 1100308 | B78: 社会保障和就业 | C78: 2864
A79: 1100310 | B79: 卫生健康 | C79: 4139
A80: 1100311 | B80: 节能环保 | C80: 2314
A81: 1100312 | B81: 城乡社区 | C81: 848
A82: 1100313 | B82: 农林水 | C82: 8315
A83: 1100314 | B83: 交通运输 | C83: 7620
A84: 1100315 | B84: 资源勘探信息等
A85: 1100316 | B85: 商业服务业等 | C85: 82
A86: 1100317 | B86: 金融
A87: 1100320 | B87: 自然资源海洋气象等 | C87: 531
A88: 1100321 | B88: 住房保障 | C88: 6175
A89: 1100322 | B89: 粮油物资储备 | C89: 1736
A90: 1100399 | B90: 其他收入 | C90: 200
A91: 11006 | B91: （四）下级上解收入 | C91: =C92+C93 -> 20500
A92: 1100601 | B92: 体制上解收入 | C92: 20500
A93: 1100602 | B93: 专项上解收入
A94: 11008 | B94: （五）上年结转收入 | C94: =SUM(C95:C96) -> 19165
B95: 争取中央、省补助或动用历年结转 | C95: 10000
B96: 上年专项结转 | C96: 9165
A97: 11009 | B97: （六）调入资金 | C97: =C98 -> 26162
A98: 1100901 | B98: 调入一般公共预算资金 | C98: =SUM(C99:C100) -> 26162
A99: 110090102 | B99: 从政府性基金预算调入一般公共预算资金 | C99: 10000
A100: 110090103 | B100: 从其他资金调入一般公共预算资金 | C100: 16162
B101: 其中：从预算稳定调节基金调入 | C101: 5162
A102: 105 | B102: 三、债务收入 | C102: =C103 -> 21542
A103: 10504 | B103: 地方政府债务收入 | C103: 21542
A104: 1050401 | B104: 一般债务收入 | C104: 21542
A105: 104040101 | B105: 地方政府一般债券收入 | C105: =SUM(C106:C107) -> 21542
B106: 新增债券
B107: 置换债券 | C107: 21542
B109: 收 入 合 计 | C109: =C5+C32+C102 -> 344513

Sheet 22、本级公共预算支出
A1: 附表22
A2: 市本级2020年一般公共预算支出明细表
C3: 单位:万元
A4: 科目编码 | B4: 科目名称 | C4: 预算数 | D4: 本级一般公共预算 | E4: 上级转移支付 | F4: 备注
B5: 一、本级一般公共预算支出合计 | C5: =C6+C113+C116+C135+C152+C162+C187+C263+C300+C316+C337+C385+C400+C409+C415+C418+C430+C442+C450+C463+C466+C469+C472 -> 274296 | D5: =D6+D113+D116+D135+D152+D162+D187+D263+D300+D316+D337+D385+D400+D409+D415+D418+D430+D442+D450+D463+D466+D469+D472 -> 214299 | E5: 59998
A6: 201 | B6: 一般公共服务支出 | C6: =C7+C12+C17+C25+C33+C38+C45+C47+C52+C56+C63+C66+C69+C73+C78+C82+C86+C90+C95+C97+C99+C102+C111 -> 34934 | D6: =D7+D12+D17+D25+D33+D38+D45+D47+D52+D56+D63+D66+D69+D73+D78+D82+D86+D90+D95+D97+D99+D102+D111 -> 33,986.65 | E6: =E7+E12+E17+E25+E33+E38+E45+E47+E52+E56+E63+E66+E69+E73+E78+E82+E86+E90+E95+E97+E99+E102+E111 -> 947.27
A7: 20101 | B7: 人大事务 | C7: =SUM(C8:C11) -> 731 | D7: =SUM(D8:D11) -> 731.41 | E7: =SUM(E8:E11) -> 0.00
A8: 2010101 | B8: 行政运行（人大事务） | C8: 489 | D8: 488.91 | E8: 0.00
A9: 2010102 | B9: 一般行政管理事务（人大事务） | C9: 110 | D9: 110.00 | E9: 0.00
A10: 2010106 | B10: 人大监督 | C10: 50 | D10: 50.00 | E10: 0.00
A11: 2010108 | B11: 代表工作 | C11: 83 | D11: 82.50 | E11: 0.00
A12: 20102 | B12: 政协事务 | C12: =SUM(C13:C16) -> 671 | D12: =SUM(D13:D16) -> 651.32 | E12: =SUM(E13:E16) -> 20.00
A13: 2010201 | B13: 行政运行（政协事务） | C13: 468 | D13: 468.32 | E13: 0.00
A14: 2010203 | B14: 机关服务（政协事务） | C14: 89 | D14: 69.00 | E14: 20.00
A15: 2010205 | B15: 委员视察 | C15: 51 | D15: 51.00 | E15: 0.00
A16: 2010206 | B16: 参政议政（政协事务） | C16: 63 | D16: 63.00 | E16: 0.00
A17: 20103 | B17: 政府办公厅（室）及相关机构事务 | C17: =SUM(C18:C24) -> 5523 | D17: =SUM(D18:D24) -> 5,522.61 | E17: =SUM(E18:E24) -> 0.00
A18: 2010301 | B18: 行政运行（政府办公厅（室）及相关机构事务） | C18: 850 | D18: 849.78 | E18: 0.00
A19: 2010302 | B19: 一般行政管理事务（政府办公厅（室）及相关机构事务） | C19: 137 | D19: 136.90 | E19: 0.00
A20: 2010303 | B20: 机关服务（政府办公厅（室）及相关机构事务） | C20: 815 | D20: 814.53 | E20: 0.00
A21: 2010305 | B21: 专项业务活动 | C21: 2166 | D21: 2,166.00 | E21: 0.00
A22: 2010308 | B22: 信访事务 | C22: 435 | D22: 434.61 | E22: 0.00
A23: 2010350 | B23: 事业运行（政府办公厅（室）及相关机构事务） | C23: 608 | D23: 608.17 | E23: 0.00
A24: 2010399 | B24: 其他政府办公厅（室）及相关机构事务支出 | C24: 513 | D24: 512.62 | E24: 0.00
A25: 20104 | B25: 发展与改革事务 | C25: =SUM(C26:C32) -> 1046 | D25: =SUM(D26:D32) -> 850.52 | E25: =SUM(E26:E32) -> 195.00
A26: 2010401 | B26: 行政运行（发展与改革事务） | C26: 517 | D26: 517.17 | E26: 0.00
A27: 2010402 | B27: 一般行政管理事务（发展与改革事务） | C27: 381 | D27: 190.72 | E27: 190.00
A28: 2010403 | B28: 机关服务（发展与改革事务） | C28: 0 | D28: 0.00 | E28: 0.00
A29: 2010404 | B29: 战略规划与实施 | C29: 100 | D29: 100.00 | E29: 0.00
A30: 2010408 | B30: 物价管理 | C30: 13 | D30: 13.00 | E30: 0.00
A31: 2010450 | B31: 事业运行（发展与改革事务） | C31: 23 | D31: 22.63 | E31: 0.00
A32: 2010499 | B32: 其他发展与改革事务支出 | C32: 12 | D32: 7.00 | E32: 5.00
A33: 20105 | B33: 统计信息事务 | C33: =SUM(C34:C37) -> 637 | D33: =SUM(D34:D37) -> 636.91 | E33: =SUM(E34:E37) -> 0.00
A34: 2010501 | B34: 行政运行（统计信息事务） | C34: 255 | D34: 255.39 | E34: 0.00
A35: 2010502 | B35: 一般行政管理事务（统计信息事务） | C35: 30 | D35: 29.52 | E35: 0.00
A36: 2010505 | B36: 专项统计业务 | C36: 132 | D36: 132.00 | E36: 0.00
A37: 2010507 | B37: 专项普查活动 | C37: 220 | D37: 220.00 | E37: 0.00
A38: 20106 | B38: 财政事务 | C38: =SUM(C39:C44) -> 1511 | D38: =SUM(D39:D44) -> 1,143.30 | E38: =SUM(E39:E44) -> 367.27
A39: 2010601 | B39: 行政运行（财政事务） | C39: 846 | D39: 846.30 | E39: 0.00
A40: 2010604 | B40: 预算改革业务 | C40: 316 | D40: 0.00 | E40: 316.27
A41: 2010605 | B41: 财政国库业务 | C41: 70 | D41: 70.00 | E41: 0.00
A42: 2010607 | B42: 信息化建设（财政事务） | C42: 130 | D42: 130.00 | E42: 0.00
A43: 2010608 | B43: 财政委托业务支出 | C43: 97 | D43: 97.00 | E43: 0.00
A44: 2010699 | B44: 其他财政事务支出 | C44: 51 | D44: 0.00 | E44: 51.00
A45: 20107 | B45: 税收事务 | C45: =C46 -> 4200 | D45: =D46 -> 4,200.00 | E45: =E46 -> 0.00
A46: 2010799 | B46: 其他税收事务支出 | C46: 4200 | D46: 4,200.00 | E46: 0.00
A47: 20108 | B47: 审计事务 | C47: =SUM(C48:C51) -> 859 | D47: =SUM(D48:D51) -> 821.50 | E47: =SUM(E48:E51) -> 37.00
A48: 2010801 | B48: 行政运行（审计事务） | C48: 407 | D48: 406.50 | E48: 0.00
A49: 2010804 | B49: 审计业务 | C49: 212 | D49: 200.00 | E49: 12.00
A50: 2010806 | B50: 信息化建设（审计事务） | C50: 40 | D50: 15.00 | E50: 25.00
A51: 2010899 | B51: 其他审计事务支出 | C51: 200 | D51: 200.00 | E51: 0.00
A52: 20110 | B52: 人力资源事务 | C52: =SUM(C53:C55) -> 885 | D52: =SUM(D53:D55) -> 846.27 | E52: =SUM(E53:E55) -> 39.00
A53: 2011001 | B53: 行政运行（人力资源事务） | C53: 96 | D53: 96.27 | E53: 0.00
A54: 2011008 | B54: 引进人才费用 | C54: 750 | D54: 750.00 | E54: 0.00
A55: 2011099 | B55: 其他人力资源事务支出 | C55: 39 | D55: 0.00 | E55: 39.00
A56: 20111 | B56: 纪检监察事务 | C56: =SUM(C57:C62) -> 4997 | D56: =SUM(D57:D62) -> 4,997.15 | E56: =SUM(E57:E62) -> 0.00
A57: 2011101 | B57: 行政运行（纪检监察事务） | C57: 1786 | D57: 1,786.43 | E57: 0.00
A58: 2011104 | B58: 大案要案查处 | C58: 2690 | D58: 2,690.00 | E58: 0.00
A59: 2011105 | B59: 派驻派出机构 | C59: 119 | D59: 119.00 | E59: 0.00
A60: 2011106 | B60: 巡视工作 | C60: 204 | D60: 204.00 | E60: 0.00
A61: 2011150 | B61: 事业运行（纪检监察事务） | C61: 1 | D61: 0.72 | E61: 0.00
A62: 2011199 | B62: 其他纪检监察事务支出 | C62: 197 | D62: 197.00 | E62: 0.00
A63: 20113 | B63: 商贸事务 | C63: =SUM(C64:C65) -> 607 | D63: =SUM(D64:D65) -> 606.76 | E63: =SUM(E64:E65) -> 0.00
A64: 2011301 | B64: 行政运行（商贸事务） | C64: 7 | D64: 7.49 | E64: 0.00
A65: 2011308 | B65: 招商引资 | C65: 599 | D65: 599.27 | E65: 0.00
A66: 20126 | B66: 档案事务 | C66: =SUM(C67:C68) -> 219 | D66: =SUM(D67:D68) -> 219.48 | E66: =SUM(E67:E68) -> 0.00
A67: 2012601 | B67: 行政运行（档案事务） | C67: 147 | D67: 147.48 | E67: 0.00
A68: 2012602 | B68: 一般行政管理事务（档案事务） | C68: 72 | D68: 72.00 | E68: 0.00
A69: 20128 | B69: 民主党派及工商联事务 | C69: =SUM(C70:C72) -> 141 | D69: =SUM(D70:D72) -> 140.85 | E69: =SUM(E70:E72) -> 0.00
A70: 2012801 | B70: 行政运行（民主党派及工商联事务） | C70: 65 | D70: 64.85 | E70: 0.00
A71: 2012802 | B71: 一般行政管理事务（民主党派及工商联事务） | C71: 30 | D71: 30.00 | E71: 0.00
A72: 2012804 | B72: 参政议政（民主党派及工商联事务） | C72: 46 | D72: 46.00 | E72: 0.00
A73: 20129 | B73: 群众团体事务 | C73: =SUM(C74:C77) -> 611 | D73: =SUM(D74:D77) -> 610.68 | E73: =SUM(E74:E77) -> 0.00
A74: 2012901 | B74: 行政运行（群众团体事务） | C74: 288 | D74: 287.68 | E74: 0.00
A75: 2012902 | B75: 一般行政管理事务（群众团体事务） | C75: 252 | D75: 252.00 | E75: 0.00
A76: 2012903 | B76: 机关服务（群众团体事务） | C76: 25 | D76: 25.00 | E76: 0.00
A77: 2012999 | B77: 其他群众团体事务支出 | C77: 46 | D77: 46.00 | E77: 0.00
A78: 20131 | B78: 党委办公厅（室）及相关机构事务 | C78: =SUM(C79:C81) -> 3418 | D78: =SUM(D79:D81) -> 3,417.73 | E78: =SUM(E79:E81) -> 0.00
A79: 2013101 | B79: 行政运行（党委办公厅（室）及相关机构事务） | C79: 912 | D79: 912.25 | E79: 0.00
A80: 2013105 | B80: 专项业务（党委办公厅（室）及相关机构事务） | C80: 2402 | D80: 2,401.50 | E80: 0.00
A81: 2013199 | B81: 其他党委办公厅（室）及相关机构事务支出 | C81: 104 | D81: 103.98 | E81: 0.00
A82: 20132 | B82: 组织事务 | C82: =SUM(C83:C85) -> 523 | D82: =SUM(D83:D85) -> 510.87 | E82: =SUM(E83:E85) -> 12.00
A83: 2013201 | B83: 行政运行（组织事务） | C83: 340 | D83: 339.63 | E83: 0.00
A84: 2013202 | B84: 一般行政管理事务（组织事务） | C84: 156 | D84: 156.00 | E84: 0.00
A85: 2013299 | B85: 其他组织事务支出 | C85: 27 | D85: 15.24 | E85: 12.00
A86: 20133 | B86: 宣传事务 | C86: =SUM(C87:C89) -> 581 | D86: =SUM(D87:D89) -> 581.01 | E86: =SUM(E87:E89) -> 0.00
A87: 2013301 | B87: 行政运行（宣传事务） | C87: 270 | D87: 270.01 | E87: 0.00
A88: 2013302 | B88: 一般行政管理事务（宣传事务） | C88: 253 | D88: 253.00 | E88: 0.00
A89: 2013399 | B89: 其他宣传事务支出 | C89: 58 | D89: 58.00 | E89: 0.00
A90: 20134 | B90: 统战事务 | C90: =SUM(C91:C94) -> 402 | D90: =SUM(D91:D94) -> 361.06 | E90: =SUM(E91:E94) -> 41.00
A91: 2013401 | B91: 行政运行（统战事务） | C91: 188 | D91: 188.06 | E91: 0.00
A92: 2013402 | B92: 一般行政管理事务（统战事务） | C92: 201 | D92: 163.00 | E92: 38.00
A93: 2013404 | B93: 宗教事务 | C93: 3 | D93: 0.00 | E93: 3.00
A94: 2013499 | B94: 其他统战事务支出 | C94: 10 | D94: 10.00 | E94: 0.00
A95: 20135 | B95: 对外联络事务 | C95: =C96 -> 95 | D95: =D96 -> 95.37 | E95: =E96 -> 0.00
A96: 2013501 | B96: 行政运行（对外联络事务） | C96: 95 | D96: 95.37 | E96: 0.00
A97: 20136 | B97: 其他共产党事务支出 | C97: =C98 -> 0 | D97: =D98 -> 0.48 | E97: =E98 -> 0.00
A98: 2013699 | B98: 其他共产党事务支出（其他共产党事务支出） | C98: 0 | D98: 0.48 | E98: 0.00
A99: 20137 | B99: 网信事务 | C99: =SUM(C100:C101) -> 402 | D99: =SUM(D100:D101) -> 401.74 | E99: =SUM(E100:E101) -> 0.00
A100: 2013750 | B100: 事业运行 | C100: 48 | D100: 48.14 | E100: 0.00
A101: 2013799 | B101: 其他网信事务支出 | C101: 354 | D101: 353.60 | E101: 0.00
A102: 20138 | B102: 市场监督管理事务 | C102: =SUM(C103:C110) -> 3904 | D102: =SUM(D103:D110) -> 3,880.81 | E102: =SUM(E103:E110) -> 23.00
A103: 2013801 | B103: 行政运行 | C103: 2159 | D103: 2,136.24 | E103: 23.00
A104: 2013804 | B104: 市场主体管理 | C104: 150 | D104: 150.00 | E104: 0.00
A105: 2013808 | B105: 信息化建设 | C105: 77 | D105: 77.30 | E105: 0.00
A106: 2013812 | B106: 药品事务 | C106: 170 | D106: 170.00 | E106: 0.00
A107: 2013815 | B107: 质量安全监管 | C107: 282 | D107: 282.00 | E107: 0.00
A108: 2013816 | B108: 食品安全监管 | C108: 0 | D108: 0.00 | E108: 0.00
A109: 2013850 | B109: 事业运行 | C109: 173 | D109: 172.80 | E109: 0.00
A110: 2013899 | B110: 其他市场监督管理事务 | C110: 892 | D110: 892.47 | E110: 0.00
A111: 20199 | B111: 其他一般公共服务支出 | C111: =C112 -> 2972 | D111: =D112 -> 2,758.82 | E111: =E112 -> 213.00
A112: 2019999 | B112: 其他一般公共服务支出 | C112: 2972 | D112: 2,758.82 | E112: 213.00
A113: 203 | B113: 国防支出 | C113: =C114 -> 468 | D113: 267.00 | E113: 201.00
A114: 20306 | B114: 国防动员 | C114: 468 | D114: 267.00 | E114: 201.00
A115: 2030607 | B115: 民兵 | C115: 468 | D115: 267.00 | E115: 201.00
A116: 204 | B116: 公共安全支出 | C116: =C117+C119+C124+C126 -> 33224 | D116: =D117+D119+D124+D126 -> 31,223.50 | E116: =E117+E119+E124+E126 -> 2000.70
A117: 20401 | B117: 武装警察部队 | C117: =C118 -> 299 | D117: =D118 -> 299.00 | E117: =E118 -> 0.00
A118: 2040199 | B118: 其他武装警察部队支出 | C118: 299 | D118: 299.00 | E118: 0.00
A119: 20402 | B119: 公安 | C119: =SUM(C120:C123) -> 31855 | D119: =SUM(D120:D123) -> 29,964.28 | E119: =SUM(E120:E123) -> 1891.00
A120: 2040201 | B120: 行政运行（公安） | C120: 11403 | D120: 11,403.35 | E120: 0.00
A121: 2040219 | B121: 信息化建设（公安） | C121: 100 | D121: 100.00 | E121: 0.00
A122: 2040220 | B122: 执法办案 | C122: 14954 | D122: 13,080.45 | E122: 1874.00
A123: 2040299 | B123: 其他公安支出 | C123: 5397 | D123: 5,380.48 | E123: 17.00
A124: 20404 | B124: 检察 | C124: =C125 -> 500 | D124: =D125 -> 500.00 | E124: =E125 -> 0.00
A125: 2040499 | B125: 其他检察支出 | C125: 500 | D125: 500.00 | E125: 0.00
A126: 20406 | B126: 司法 | C126: =SUM(C127:C134) -> 570 | D126: =SUM(D127:D134) -> 460.22 | E126: =SUM(E127:E134) -> 109.70
A127: 2040601 | B127: 行政运行（司法） | C127: 369 | D127: 324.22 | E127: 44.70
A128: 2040602 | B128: 一般行政管理事务（司法） | C128: 88 | D128: 88.00 | E128: 0.00
A129: 2040604 | B129: 基层司法业务 | C129: 3 | D129: 2.80 | E129: 0.00
A130: 2040605 | B130: 普法宣传 | C130: 10 | D130: 10.00 | E130: 0.00
A131: 2040607 | B131: 法律援助 | C131: 8 | D131: 8.40 | E131: 0.00
A132: 2040609 | B132: 仲裁 | C132: 10 | D132: 10.00 | E132: 0.00
A133: 2040610 | B133: 社区矫正 | C133: 10 | D133: 9.80 | E133: 0.00
A134: 2040699 | B134: 其他司法支出 | C134: 72 | D134: 7.00 | E134: 65.00
A135: 205 | B135: 教育支出 | C135: =C136+C140+C144+C148+C150 -> 26075 | D135: =D136+D140+D144+D148+D150 -> 23,432.43 | E135: =E136+E140+E144+E148+E150 -> 2642.21
A136: 20501 | B136: 教育管理事务 | C136: =SUM(C137:C139) -> 1531 | D136: =SUM(D137:D139) -> 1,528.10 | E136: =SUM(E137:E139) -> 2.40
A137: 2050101 | B137: 行政运行（教育管理事务） | C137: 433 | D137: 432.73 | E137: 0.00
A138: 2050102 | B138: 一般行政管理事务（教育管理事务） | C138: 990 | D138: 987.37 | E138: 2.40
A139: 2050199 | B139: 其他教育管理事务支出 | C139: 108 | D139: 108.00 | E139: 0.00
A140: 20502 | B140: 普通教育 | C140: =SUM(C141:C143) -> 12018 | D140: =SUM(D141:D143) -> 11,858.98 | E140: =SUM(E141:E143) -> 158.97
A141: 2050201 | B141: 学前教育 | C141: 103 | D141: 102.90 | E141: 0.00
A142: 2050204 | B142: 高中教育 | C142: 11870 | D142: 11,756.08 | E142: 113.97
A143: 2050299 | B143: 其他普通教育支出 | C143: 45 | D143: 0.00 | E143: 45.00
A144: 20503 | B144: 职业教育 | C144: =SUM(C145:C147) -> 9572 | D144: =SUM(D145:D147) -> 7,091.15 | E144: =SUM(E145:E147) -> 2480.84
A145: 2050302 | B145: 中等职业教育 | C145: 701 | D145: 487.87 | E145: 213.29
A146: 2050303 | B146: 技校教育 | C146: 3531 | D146: 2,791.28 | E146: 739.61
A147: 2050305 | B147: 高等职业教育 | C147: 5340 | D147: 3,812.00 | E147: 1527.94
A148: 20508 | B148: 进修及培训 | C148: =C149 -> 2502 | D148: =D149 -> 2,502.20 | E148: =E149 -> 0.00
A149: 2050802 | B149: 干部教育 | C149: 2502 | D149: 2,502.20 | E149: 0.00
A150: 20599 | B150: 其他教育支出 | C150: =C151 -> 452 | D150: =D151 -> 452.00 | E150: =E151 -> 0.00
A151: 2059999 | B151: 其他教育支出 | C151: 452 | D151: 452.00 | E151: 0.00
A152: 206 | B152: 科学技术支出 | C152: =C153+C155+C157+C160 -> 2690 | D152: =D153+D155+D157+D160 -> 2,690.12 | E152: =E153+E155+E157+E160 -> 0.00
A153: 20601 | B153: 科学技术管理事务 | C153: =C154 -> 138 | D153: =D154 -> 137.56 | E153: =E154 -> 0.00
A154: 2060101 | B154: 行政运行（科学技术管理事务） | C154: 138 | D154: 137.56 | E154: 0.00
A155: 20605 | B155: 科技条件与服务 | C155: =C156 -> 1000 | D155: =D156 -> 1,000.00 | E155: =E156 -> 0.00
A156: 2060502 | B156: 技术创新服务体系 | C156: 1000 | D156: 1,000.00 | E156: 0.00
A157: 20607 | B157: 科学技术普及 | C157: =SUM(C158:C159) -> 153 | D157: =SUM(D158:D159) -> 152.56 | E157: =SUM(E158:E159) -> 0.00
A158: 2060701 | B158: 机构运行（科学技术普及） | C158: 73 | D158: 72.56 | E158: 0.00
A159: 2060702 | B159: 科普活动 | C159: 80 | D159: 80.00 | E159: 0.00
A160: 20699 | B160: 其他科学技术支出 | C160: =C161 -> 1400 | D160: =D161 -> 1,400.00 | E160: =E161 -> 0.00
A161: 2069901 | B161: 科技奖励 | C161: 1400 | D161: 1,400.00 | E161: 0.00
A162: 207 | B162: 文化旅游体育与传媒支出 | C162: =C163+C173+C176+C178+C181+C185 -> 8442 | D162: =D163+D173+D176+D178+D181+D185 -> 5,120.95 | E162: =E163+E173+E176+E178+E181+E185 -> 3321.50
A163: 20701 | B163: 文化和旅游 | C163: =SUM(C164:C172) -> 3697 | D163: =SUM(D164:D172) -> 1,692.19 | E163: =SUM(E164:E172) -> 2004.79
A164: 2070101 | B164: 行政运行（文化） | C164: 302 | D164: 301.82 | E164: 0.00
A165: 2070102 | B165: 一般行政管理事务（文化） | C165: 30 | D165: 30.00 | E165: 0.00
A166: 2070104 | B166: 图书馆 | C166: 290 | D166: 289.29 | E166: 0.60
A167: 2070107 | B167: 艺术表演团体 | C167: 20 | D167: 20.00 | E167: 0.00
A168: 2070108 | B168: 文化活动 | C168: 20 | D168: 20.00 | E168: 0.00
A169: 2070110 | B169: 文化和旅游交流与合作 | C169: 1330 | D169: 330.00 | E169: 1000.00
A170: 2070111 | B170: 文化创作与保护 | C170: 50 | D170: 50.00 | E170: 0.00
A171: 2070112 | B171: 文化和旅游市场管理 | C171: 151 | D171: 151.08 | E171: 0.00
A172: 2070199 | B172: 其他文化和旅游支出 | C172: 1504 | D172: 500.00 | E172: 1004.19
A173: 20702 | B173: 文物 | C173: =SUM(C174:C175) -> 2536 | D173: =SUM(D174:D175) -> 1,268.29 | E173: =SUM(E174:E175) -> 1268.09
A174: 2070204 | B174: 文物保护 | C174: 1859 | D174: 590.79 | E174: 1268.09
A175: 2070205 | B175: 博物馆 | C175: 678 | D175: 677.50 | E175: 0.00
A176: 20703 | B176: 体育 | C176: =C177 -> 20 | D176: =D177 -> 20.00 | E176: =E177 -> 0.00
A177: 2070308 | B177: 群众体育 | C177: 20 | D177: 20.00 | E177: 0.00
A178: 20706 | B178: 新闻出版电影 | C178: =SUM(C179:C180) -> 149 | D178: =SUM(D179:D180) -> 135.00 | E178: =SUM(E179:E180) -> 13.62
A179: 2070605 | B179: 出版发行 | C179: 120 | D179: 120.00 | E179: 0.00
A180: 2070699 | B180: 其他新闻出版电影支出 | C180: 29 | D180: 15.00 | E180: 13.62
A181: 20708 | B181: 广播电视 | C181: =SUM(C182:C184) -> 2005 | D181: =SUM(D182:D184) -> 2,005.47 | E181: =SUM(E182:E184) -> 0.00
A182: 2070804 | B182: 广播 | C182: 288 | D182: 288.29 | E182: 0.00
A183: 2070805 | B183: 电视 | C183: 1707 | D183: 1,707.18 | E183: 0.00
A184: 2070899 | B184: 其他广播电视支出 | C184: 10 | D184: 10.00 | E184: 0.00
A185: 20799 | B185: 其他文化旅游体育与传媒支出 | C185: =C186 -> 35 | D185: =D186 -> 0.00 | E185: =E186 -> 35.00
A186: 2079999 | B186: 其他文化旅游体育与传媒支出 | C186: 35 | D186: 0.00 | E186: 35.00
A187: 208 | B187: 社会保障和就业支出 | C187: =C188+C198+C205+C213+C216+C218+C225+C232+C238+C244+C247+C250+C252+C254+C256+C261 -> 31731 | D187: =D188+D198+D205+D213+D216+D218+D225+D232+D238+D244+D247+D250+D252+D254+D256+D261 -> 13,029.55 | E187: =E188+E198+E205+E213+E216+E218+E225+E232+E238+E244+E247+E250+E252+E254+E256+E261 -> 18701.48
A188: 20801 | B188: 人力资源和社会保障管理事务 | C188: =SUM(C189:C197) -> 1236 | D188: =SUM(D189:D197) -> 1,229.87 | E188: =SUM(E189:E197) -> 6.00
A189: 2080101 | B189: 行政运行（人力资源和社会保障管理事务） | C189: 286 | D189: 285.57 | E189: 0.00
A190: 2080102 | B190: 一般行政管理事务（人力资源和社会保障管理事务） | C190: 46 | D190: 46.00 | E190: 0.00
A191: 2080105 | B191: 劳动保障监察 | C191: 83 | D191: 83.37 | E191: 0.00
A192: 2080106 | B192: 就业管理事务 | C192: 88 | D192: 87.54 | E192: 0.00
A193: 2080108 | B193: 信息化建设（人力资源和社会保障管理事务） | C193: 134 | D193: 134.37 | E193: 0.00
A194: 2080109 | B194: 社会保险经办机构 | C194: 281 | D194: 281.44 | E194: 0.00
A195: 2080111 | B195: 公共就业服务和职业技能鉴定机构 | C195: 295 | D195: 295.40 | E195: 0.00
A196: 2080112 | B196: 劳动人事争议调解仲裁 | C196: 16 | D196: 16.18 | E196: 0.00
A197: 2080199 | B197: 其他人力资源和社会保障管理事务支出 | C197: 6 | D197: 0.00 | E197: 6.00
A198: 20802 | B198: 民政管理事务 | C198: =SUM(C199:C204) -> 381 | D198: =SUM(D199:D204) -> 375.90 | E198: =SUM(E199:E204) -> 5.00
A199: 2080201 | B199: 行政运行（民政管理事务） | C199: 221 | D199: 220.90 | E199: 0.00
A200: 2080202 | B200: 一般行政管理事务（民政管理事务） | C200: 75 | D200: 75.00 | E200: 0.00
... 291 more rows

Sheet 23、公共预算支出-经济分类
A1: 附表23
A2: 市本级2020年一般公共预算支出政府经济分类情况表
P3: 单位:万元
A4: 功能科目类名称 | B4: 总计 | C4: 机关工资福利支出 | D4: 机关商品和服务支出 | E4: 机关资本性支出（一） | F4: 机关资本性支出（二） | G4: 对事业单位经常性补助 | H4: 对事业单位资本性补助 | I4: 对企业补助 | J4: 对企业资本性支出 | K4: 对个人和家庭的补助 | L4: 对社会保障基金补助 | M4: 债务利息及费用支出 | N4: 债务还本支出 | O4: 转移性支出 | P4: 预备费及预留 | Q4: 其他支出
A5: 合计 | B5: =SUM(B6:B30) -> 344514 | C5: =SUM(C6:C30) -> 50544 | D5: 40572 | E5: 52612 | F5: 1501 | G5: 44322 | H5: 9877 | I5: 17984 | J5: 0 | K5: 12107 | L5: 0 | M5: 5667 | N5: 26542 | O5: 37875 | P5: 44913 | Q5: 0
A6: 一般公共服务支出 | B6: =SUM(C6:Q6) -> 34934 | C6: 12913 | D6: 11950 | E6: 7135 | F6: 93 | G6: 2337 | H6: 336 | I6: 0 | J6: 0 | K6: 159 | L6: 0 | M6: 0 | N6: 0 | O6: 0 | P6: 12 | Q6: 0
A7: 国防支出 | B7: 468 | C7: 0 | D7: 0 | E7: 468 | F7: 0 | G7: 0 | H7: 0 | I7: 0 | J7: 0 | K7: 0 | L7: 0 | M7: 0 | N7: 0 | O7: 0 | P7: 0 | Q7: 0
A8: 公共安全支出 | B8: 33224 | C8: 8997 | D8: 8757 | E8: 15269 | F8: 0 | G8: 10 | H8: 1 | I8: 0 | J8: 0 | K8: 15 | L8: 0 | M8: 0 | N8: 0 | O8: 0 | P8: 176 | Q8: 0
A9: 教育支出 | B9: 26075 | C9: 714 | D9: 1496 | E9: 624 | F9: 846 | G9: 18945 | H9: 1542 | I9: 0 | J9: 0 | K9: 1899 | L9: 0 | M9: 0 | N9: 0 | O9: 0 | P9: 8 | Q9: 0
A10: 科学技术支出 | B10: 2690 | C10: 159 | D10: 1131 | E10: 0 | F10: 0 | G10: 0 | H10: 0 | I10: 1400 | J10: 0 | K10: 0 | L10: 0 | M10: 0 | N10: 0 | O10: 0 | P10: 0 | Q10: 0
A11: 文化旅游体育与传媒支出 | B11: 8442 | C11: 213 | D11: 1404 | E11: 2972 | F11: 0 | G11: 3132 | H11: 722 | I11: 0 | J11: 0 | K11: 0 | L11: 0 | M11: 0 | N11: 0 | O11: 0 | P11: 0 | Q11: 0
A12: 社会保障和就业支出 | B12: 31731 | C12: 16514 | D12: 1544 | E12: 40 | F12: 0 | G12: 2805 | H12: 944 | I12: 400 | J12: 0 | K12: 9484 | L12: 0 | M12: 0 | N12: 0 | O12: 0 | P12: 0 | Q12: 0
A13: 卫生健康支出 | B13: 11839 | C13: 2988 | D13: 2275 | E13: 11 | F13: 0 | G13: 4017 | H13: 2252 | I13: 0 | J13: 0 | K13: 296 | L13: 0 | M13: 0 | N13: 0 | O13: 0 | P13: 0
A14: 节能环保支出 | B14: 6586 | C14: 533 | D14: 2833 | E14: 3079 | F14: 0 | G14: 135 | H14: 0 | I14: 0 | J14: 0 | K14: 0 | L14: 0 | M14: 0 | N14: 0 | O14: 0 | P14: 5
A15: 城乡社区支出 | B15: 12653 | C15: 1465 | D15: 707 | E15: 848 | F15: 0 | G15: 5204 | H15: 2624 | I15: 1579 | J15: 0 | K15: 200 | L15: 0 | M15: 0 | N15: 0 | O15: 0 | P15: 26
A16: 农林水支出 | B16: 15843 | C16: 993 | D16: 1536 | E16: 8258 | F16: 62 | G16: 1764 | H16: 331 | I16: 2883 | J16: 0 | K16: 4 | L16: 0 | M16: 0 | N16: 0 | P16: 12
A17: 交通运输支出 | B17: 10910 | C17: 270 | D17: 261 | E17: 5634 | F17: 0 | G17: 2155 | H17: 664 | I17: 1014 | J17: 0 | K17: 0 | L17: 0 | M17: 0 | N17: 0 | O17: 0 | P17: 911
A18: 资源勘探工业信息等支出 | B18: 7671 | C18: 326 | D18: 185 | E18: 0 | F18: 0 | G18: 0 | H18: 0 | I18: 7160 | J18: 0 | K18: 0 | L18: 0 | M18: 0 | N18: 0 | O18: 0 | P18: 0 | Q18: 0
A19: 商业服务业等支出 | B19: 1324 | C19: 270 | D19: 114 | E19: 0 | F19: 0 | G19: 0 | H19: 0 | I19: 940 | J19: 0 | K19: 0 | L19: 0 | M19: 0 | N19: 0 | O19: 0 | P19: 0 | Q19: 0
A20: 援助其他地区支出 | B20: 140 | C20: 0 | D20: 140 | E20: 0 | F20: 0 | G20: 0 | H20: 0 | I20: 0 | J20: 0 | K20: 0 | L20: 0 | M20: 0 | N20: 0 | O20: 0 | P20: 0 | Q20: 0
A21: 自然资源海洋气象等支出 | B21: 4567 | C21: 294 | D21: 2306 | E21: 0 | F21: 0 | G21: 1527 | H21: 440 | I21: 0 | J21: 0 | K21: 0 | L21: 0 | M21: 0 | N21: 0 | O21: 0 | P21: 0 | Q21: 0
A22: 住房保障支出 | B22: 11221 | C22: 2864 | D22: 1220 | E22: 3838 | F22: 0 | G22: 2158 | H22: 14 | I22: 1127 | J22: 0 | K22: 0 | L22: 0 | M22: 0 | N22: 0 | O22: 0 | P22: 0 | Q22: 0
A23: 粮油物资储备支出 | B23: 2165 | C23: 0 | D23: 0 | E23: 655 | F23: 0 | G23: 24 | H23: 0 | I23: 1481 | J23: 0 | K23: 0 | L23: 0 | M23: 5 | N23: 0 | O23: 0 | P23: 0 | Q23: 0
A24: 灾害防治及应急管理支出 | B24: 2388 | C24: 1030 | D24: 413 | E24: 280 | F24: 500 | G24: 108 | H24: 8 | I24: 0 | J24: 0 | K24: 50 | L24: 0 | M24: 0 | N24: 0 | O24: 0 | P24: 0 | Q24: 0
A25: 预备费 | B25: 3000 | C25: 0 | D25: 0 | E25: 0 | F25: 0 | G25: 0 | H25: 0 | I25: 0 | J25: 0 | K25: 0 | L25: 0 | M25: 0 | N25: 0 | O25: 0 | P25: 3000 | Q25: 0
A26: 其他支出 | B26: 40763 | C26: 0 | D26: 0 | F26: 0 | G26: 0 | H26: 0 | I26: 0 | J26: 0 | K26: 0 | L26: 0 | M26: 0 | N26: 0 | O26: 0 | P26: 40763 | Q26: 0
A27: 转移性支出 | B27: 43675 | C27: 0 | D27: 2300 | E27: 3500 | F27: 0 | G27: 0 | H27: 0 | I27: 0 | J27: 0 | K27: 0 | L27: 0 | M27: 0 | N27: 0 | O27: 37875 | P27: 0 | Q27: 0
A28: 债务还本支出 | B28: 26542 | C28: 0 | D28: 0 | E28: 0 | F28: 0 | G28: 0 | H28: 0 | I28: 0 | J28: 0 | K28: 0 | L28: 0 | M28: 0 | N28: 26542 | P28: 0 | Q28: 0
A29: 债务付息支出 | B29: 5652 | C29: 0 | D29: 0 | E29: 0 | F29: 0 | G29: 0 | H29: 0 | I29: 0 | J29: 0 | K29: 0 | L29: 0 | M29: 5652 | N29: 0 | O29: 0 | P29: 0 | Q29: 0
A30: 债务发行费用支出 | B30: 10 | C30: 0 | D30: 0 | E30: 0 | F30: 0 | G30: 0 | H30: 0 | I30: 0 | J30: 0 | K30: 0 | L30: 0 | M30: 10 | N30: 0 | O30: 0 | P30: 0 | Q30: 0

Sheet 24、公共预算支出-基本支出
A1: 附表24
A2: 市本级2020年一般公共预算基本支出表 | G2: 市本级2019年一般公共预算基本支出表
E3: 单位:万元 | I3: 单位:万元
A4: 部门支出经济分类 | C4: 2020年预算数 | G4: 政府支出经济分类
A5: 科目编码 | B5: 科目名称 | C5: 合计 | D5: 人员支出 | E5: 公用支出 | G5: 科目编码 | H5: 科目名称 | I5: 预算支出
B6: 合计 | C6: 122905 | D6: 112252 | E6: 10653 | H6: 合计 | I6: =I7+I12+I23+I27 -> 122,905
A7: 301 | B7: 工资福利支出 | C7: 71001 | D7: 71001 | E7: 0 | G7: 501 | H7: 机关工资福利支出 | I7: =SUM(I8:I11) -> 44,402
A8: 30101 | B8: 基本工资 | C8: 24015 | D8: 24015 | E8: 0 | G8: 50101 | H8: 工资奖金津补贴 | I8: 11,639
A9: 30102 | B9: 津贴补贴 | C9: 10753 | D9: 10753 | E9: 0 | G9: 50102 | H9: 社会保障缴费 | I9: 5,326
A10: 30103 | B10: 奖金（13个月） | C10: 2927 | D10: 2927 | E10: 0 | G10: 50103 | H10: 住房公积金 | I10: 2,116
A11: 30107 | B11: 绩效工资 | C11: 6153 | D11: 6153 | E11: 0 | G11: 50199 | H11: 其他工资福利支出 | I11: 25,321
A12: 30108 | B12: 机关事业单位基本养老保险缴费 | C12: 6848 | D12: 6848 | E12: 0 | G12: 502 | H12: 机关商品和服务支出 | I12: =SUM(I13:I22) -> 7,288
A13: 30109 | B13: 职业年金缴费 | C13: 1004 | D13: 1004 | E13: 0 | G13: 50201 | H13: 办公经费 | I13: 2,314
A14: 30111 | B14: 公务员医疗补助缴费 | C14: 997 | D14: 997 | E14: 0 | G14: 50202 | H14: 会议费 | I14: 206
A15: 30112 | B15: 其他社会保障缴费 | C15: 2956 | D15: 2956 | E15: 0 | G15: 50203 | H15: 培训费 | I15: 224
A16: 30113 | B16: 住房公积金 | C16: 5233 | D16: 5233 | E16: 0 | G16: 50204 | H16: 专用材料购置费
A17: 30199 | B17: 其他工资福利支出 | C17: 10115 | D17: 10115 | E17: 0 | G17: 50205 | H17: 委托业务费 | I17: 1,883
A18: 302 | B18: 商品和服务支出 | C18: 9436 | D18: 0 | E18: 9436 | G18: 50206 | H18: 公务接待费 | I18: 231
A19: 30201 | B19: 办公费 | C19: 769 | D19: 0 | E19: 769 | G19: 50207 | H19: 因公出国（境）费用 | I19: 225
A20: 30202 | B20: 印刷费 | C20: 276 | D20: 0 | E20: 276 | G20: 50208 | H20: 公务用车运行维护费 | I20: 673
A21: 30203 | B21: 咨询费 | C21: 26 | D21: 0 | E21: 26 | G21: 50209 | H21: 维修(护)费 | I21: 435
A22: 30205 | B22: 水费 | C22: 239 | D22: 0 | E22: 239 | G22: 50299 | H22: 其他商品和服务支出 | I22: 1,097
A23: 30206 | B23: 电费 | C23: 796 | D23: 0 | E23: 796 | G23: 505 | H23: 对事业单位经常性补助 | I23: =SUM(I24:I26) -> 69,858
A24: 30207 | B24: 邮电费 | C24: 213 | D24: 0 | E24: 213 | G24: 50501 | H24: 工资福利支出 | I24: 50,899
A25: 30208 | B25: 取暖费 | C25: 8 | D25: 0 | E25: 8 | G25: 50502 | H25: 商品和服务支出 | I25: 3,364
A26: 30209 | B26: 物业管理费 | C26: 392 | D26: 0 | E26: 392 | G26: 50599 | H26: 其他对事业单位补助 | I26: 15,595
A27: 30211 | B27: 差旅费 | C27: 835 | D27: 0 | E27: 835 | G27: 509 | H27: 对个人和家庭的补助 | I27: =SUM(I28:I30) -> 1,357
A28: 30212 | B28: 因公出国（境）费用 | C28: 225 | D28: 0 | E28: 225 | G28: 50901 | H28: 社会福利和救助 | I28: 1
A29: 30213 | B29: 维修(护)费 | C29: 435 | D29: 0 | E29: 435 | G29: 50902 | H29: 助学金
A30: 30214 | B30: 租赁费 | C30: 19 | D30: 0 | E30: 19 | G30: 50505 | H30: 离退休费 | I30: 1,356
A31: 30215 | B31: 会议费 | C31: 142 | D31: 0 | E31: 142
A32: 30216 | B32: 培训费 | C32: 205 | D32: 0 | E32: 205
A33: 30217 | B33: 公务接待费 | C33: 231 | D33: 0 | E33: 231
A34: 30226 | B34: 劳务费 | C34: 70 | D34: 0 | E34: 70
A35: 30228 | B35: 工会经费 | C35: 657 | D35: 0 | E35: 657
A36: 30229 | B36: 福利费 | C36: 332 | D36: 0 | E36: 332
A37: 30231 | B37: 公务用车运行维护费 | C37: 673 | D37: 0 | E37: 673
A38: 30239 | B38: 公务交通补贴 | C38: 1782 | D38: 0 | E38: 1782
A39: 30240 | B39: 税金及附加费用 | C39: 13 | D39: 0 | E39: 13
A40: 30299 | B40: 其他商品和服务支出 | C40: 1097 | D40: 0 | E40: 1097
A41: 303 | B41: 对个人和家庭的补助 | C41: 1356 | D41: 1356 | E41: 0
A42: 30301 | B42: 离休费 | C42: 153 | D42: 153 | E42: 0
A43: 30302 | B43: 退休费 | C43: 1203 | D43: 1203 | E43: 0
A44: 30304 | B44: 抚恤金 | C44: 1 | D44: 1 | E44: 0
A45: 399 | B45: 其他支出 | C45: 41112 | D45: 39894 | E45: 1218
A46: 39951 | B46: 预备费及预留 | C46: 41112 | D46: 39894 | E46: 1218

Sheet 25、一般债务限额
A1: 附表25
A2: 全市2020年地方政府一般债务限额表
A3: 单位：万元
A4: 地 区 | B4: 一般债务
A5: 随州市 | B5: =SUM(B6:B9) -> 912174
A6: 随州市本级 | B6: 208531
A7: 曾都区 | B7: 171531
A8: 随县 | B8: 246453
A9: 广水市 | B9: 285659
A10: 备注：一、上一年度全市政府性债务限额和余额情况 省财政核定随州市2019年政府性债务限额1417445万元（其中：一般债务限额912174万元、专项债务限额505271万元）。其中市本级政府债务限额为421353万元（其中:一般债务限额208531万元、专项债务限额212822万元）；县区市政府债务限额996092万元（其中:一般债务限额703643万元、专项债务限额292449万元）。 截至2019年底，全市政府债务余额1278937万元（其中:一般债务余额792973万元、专项债务余额485964万元）。其中市本级债务余额357674万元（其中：一般债务余额167339万元、专项债务余额190335万元）；县市区债务余额921263万元（其中：一般债务余额625634万元、专项债务余额295629万元）。 二、上一年度全市政府债券还本付息情况 2019年， 随州市政府性债务共还本付息152901万元（含再融资债券），其中，市本级32354万元，县市区120547万元。全市一般债务还本付息136681万元，其中：市本级26543万元，县市区110138万元。全市专项债务还本付息16220万元，其中：市本级5811万元，县市区10409万元。 三、本年度全市政府债券还本付息预算情况 2020年，随州市共安排政府性债务还本付息预算27.65亿元，其中，市本级7.75亿元，县市区19.9亿元。全市一般债务还本付息18.86亿元，其中：市本级3.41亿元，县市区15.45亿元。全市专项债务还本付息8.79亿元，其中：市本级4.34亿元，县市区4.45亿元。 四、本年度全市政府债券安排情况 债券资金主要围绕“补短板”三年行动计划、生态修复等重大工程和公路、棚户区改造、土地储备等关系全市发展大局的重点项目建设安排使用。

Sheet 26、市级对下转移支付表
A1: 附表26
A2: 市本级2020年一般公共预算对下专项转移支付情况表
G3: 单位：万元
A4: 对下专项 | B4: 小 计 | C4: 预算数 | D4: 分地区情况
D5: 曾都区 | E5: 高新区 | F5: 大洪山 | G5: 广水 | H5: 随县
C6: 13963.0 | D6: =SUM(D7:D18) -> 4361.3 | E6: 483.1 | F6: 776.5 | G6: 2268.2 | H6: 6073.9
B7: 推进精准扶贫精准脱贫 | C7: 3000.0 | D7: 344.0 | E7: 120.0 | F7: 34.0 | G7: 1198.0 | H7: 1304.0
B8: 网格化管理 | C8: 589.1 | D8: 589.1
B9: 城区主街道环卫市场化改革 | C9: 2300.0 | D9: 2300.0
B10: 城区治安防控体系建设 | C10: 195.9 | D10: 195.9
B11: 村主职干部报酬补助 | C11: 409.0 | D11: 51.8 | E11: 25.1 | F11: 0.5 | G11: 170.2 | H11: 161.4
B12: 社区工作经费 | C12: 116.0 | D12: 94.0 | E12: 22.0
B13: 基层党组织服务群众专项 | C13: 1000.0 | D13: 354.0 | E13: 54.0 | F13: 17.0 | G13: 297.0 | H13: 278.0
B14: 农村厕所革命 | C14: 500 | D14: 97.5 | E14: 17.0 | F14: 12.0 | G14: 228.0 | H14: 145.5
B15: 学校旱厕改造 | C15: 500 | D15: 100.0 | E15: 100.0 | F15: 100.0 | G15: 100.0 | H15: 100.0
B16: 农村生活垃圾无害化处理以奖代补 | C16: 500 | D16: 80.0 | E16: 25.0 | F16: 10.0 | G16: 200.0 | H16: 185.0
B17: 污染防治攻坚战考核奖励 | C17: 100 | E17: 100.0
B18: 区县补助 | C18: 4753.0 | D18: 155.0 | E18: 20.0 | F18: 603.0 | G18: 75.0 | H18: 3900.0

Sheet 27、全市政府基金收入
A1: 附表27
A2: 全市2020年政府性基金预算收入表
A4: 科目 | B4: 项目 | C4: 预算数 | D4: 备注
A5: 1030102 | B5: 一、农网还贷资金收入
A6: 1030115 | B6: 二、港口建设费收入
A7: 1030129 | B7: 三、国家电影事业发展专项资金收入
A8: 1030146 | B8: 四、国有土地收益基金收入
A9: 1030147 | B9: 五、农业土地开发资金收入
A10: 1030148 | B10: 六、国有土地使用权出让收入 | C10: 380824
A11: 1030150 | B11: 七、大中型水库库区基金收入 | C11: 0
A12: 1030155 | B12: 八、彩票公益金收入 | C12: 797
A13: 1030156 | B13: 九、城市基础设施配套费收入 | C13: 13582
A14: 1030157 | B14: 十、小型水库移民扶助基金收入 | C14: 512
A15: 1030158 | B15: 十一、国家重大水利工程建设基金收入 | C15: 0
A16: 1030159 | B16: 十二、车辆通行费 | C16: 0
A17: 1030178 | B17: 十三、污水处理费收入 | C17: 6373
A18: 1030180 | B18: 十四、彩票发行机构和彩票销售机构的业务费用 | C18: 0
A19: 1030199 | B19: 十五、其他政府性基金收入 | C19: 77
A20: 1031006 | B20: 十六、专项债券对应项目专项收入 | C20: 2212
B22: 收 入 总 计 | C22: =SUM(C5:C20) -> 404377

Sheet 28、全市政府基金支出
A1: 附表28
A2: 全市2020年政府性基金预算支出表
C3: 单位：万元
A4: 科目 | B4: 项 目 | C4: 预算数 | D4: 备注
A5: 207 | B5: 一、文化体育与传媒支出 | C5: 20
A6: 208 | B6: 二、社会保障和就业支出 | C6: 12865
A7: 211 | B7: 三、节能环保支出 | C7: 0
A8: 212 | B8: 四、城乡社区支出 | C8: 376573
A9: 213 | B9: 五、农林水支出 | C9: 350
A10: 214 | B10: 六、交通运输支出
A11: 215 | B11: 七、资源勘探信息等支出
A12: 229 | B12: 八、其他支出 | C12: 6966
A13: 232 | B13: 九、债务付息支出 | C13: 19315
A14: 233 | B14: 十、债务发行费支出 | C14: 50
B16: 支出合计 | C16: =SUM(C5:C14) -> 416139

Sheet 29、本级政府基金收入
A1: 附表29
A2: 市本级2020年政府性基金预算收入表
A4: 科目 | B4: 项目 | C4: 预算数 | D4: 备注
B5: 一、农业土地开发资金收入
A6: 1030148 | B6: 二、国有土地使用权出让收入 | C6: =SUM(C7:C10) -> 166518
A7: 103014801 | B7: 土地出让价款收入 | C7: 166518
A8: 103014802 | B8: 补缴的土地价款
A9: 103014898 | B9: 缴纳新增建设用地土地有偿使用费
A10: 103014899 | B10: 其他土地出让收入
A11: 1030180 | B11: 三、彩票发行机构和彩票销售机构的业务费用
A12: 103018003 | B12: 福利彩票销售机构的业务费用
A13: 103018004 | B13: 体育彩票销售机构的业务费用
A14: 1030156 | B14: 四、城市基础设施配套费收入 | C14: 4000
A15: 1300178 | B15: 五、污水处理费收入 | C15: 3200
A16: 1030199 | B16: 六、其他政府性基金收入
B18: 收入合计 | C18: =C5+C6+C11+C14+C15+C16 -> 173718
A19: 110 | B19: 转移性收入 | C19: =C20+C32+C36+C38 -> 56908
A20: 11004 | B20: 一、政府性基金转移收入 | C20: =C21+C31 -> 1888
A21: 1100401 | B21: 政府性基金补助收入 | C21: =SUM(C22:C30) -> 1888
B22: 大中型水库移民后期扶持基金补助 | C22: 156
B23: 车辆通行费安排的补助
B24: 基础设施建设和经济发展补助
B25: 地方旅游开发项目补助
B26: 社会福利的彩票公益金补助 | C26: 1004
B27: 体育事业的彩票公益金补助 | C27: 710
B28: 红十字事业的彩票公益金补助
B29: 残疾人事业的彩票公益金补助 | C29: 18
B30: 城乡医疗救助的彩票公益金补助
A31: 1100402 | B31: 政府性基金上解收入
A32: 11011 | B32: 二、 债务转贷收入 | C32: =C33 -> 30185
A33: 1101102 | B33: 地方政府专项债务转贷收入 | C33: =SUM(C34:C35) -> 30185
A34: 110110211 | B34: 国有土地使用权出让金债务转贷收入 | C34: 30185
A35: 110110231 | B35: 土地储备专项债券转贷收入
A36: 11008 | B36: 三、 上年结余收入 | C36: =C37 -> 24835
A37: 1100802 | B37: 政府性基金预算上年结余收入 | C37: 24835
A38: 11009 | B38: 四、 调入资金
B39: 收入总计 | C39: =C18+C19 -> 230626

Sheet 30、本级政府性基金支出
A1: 附表30
A2: 市本级2020年政府性基金预算支出表
C3: 单位：万元
A4: 科目 | B4: 项 目 | C4: 预算数 | D4: 备注
A5: 208 | B5: 一、社会保障和就业支出 | C5: =C6 -> 156
A6: 20822 | B6: 大中型水库移民后期扶持基金支出 | C6: =SUM(C7:C9) -> 156
A7: 2082201 | B7: 移民补助 | C7: 156
A8: 2082202 | B8: 基础设施建设和经济发展
A9: 2082299 | B9: 其他大中型水库移民后期扶持资金支出
A10: 212 | B10: 二、城乡社区支出 | C10: =C11+C22+C23+C27 -> 164451
A11: 21208 | B11: 国有土地使用权出让收入及对应专项债务收入安排的支出 | C11: =SUM(C12:C21) -> 154585
A12: 2120801 | B12: 征地和拆迁补偿支出 | C12: 30870
A13: 2120802 | B13: 土地开发支出 | C13: 6300
A14: 2120803 | B14: 城市建设支出 | C14: 78504
A15: 2120804 | B15: 农村基础设施建设支出
A16: 2120805 | B16: 补助被征地农民支出 | C16: 17640
A17: 2120806 | B17: 土地出让业务支出 | C17: 3330
A18: 2120807 | B18: 廉租住房支出
A19: 2120810 | B19: 棚户区改造支出
A20: 2120811 | B20: 公共租赁住房支出
A21: 2120899 | B21: 其他国有土地使用权出让收入安排的支出 | C21: 17941
A22: 21211 | B22: 农业土地开发资金安排的支出
A23: 21213 | B23: 城市基础设施配套费安排的支出 | C23: =SUM(C24:C26) -> 6666
A24: 2121301 | B24: 城市公共设施 | C24: 1990
A25: 2121302 | B25: 城市环境卫生 | C25: 3103
A26: 2121399 | B26: 其他城市基础设施配套费安排的支出 | C26: 1573
A27: 21214 | B27: 污水处理费及对应专项债务收入安排的支出 | C27: =SUM(C28:C29) -> 3200
A28: 2121401 | B28: 污水处理设施建设和运营 | C28: 3200
A29: 2121499 | B29: 其他污水处理费安排的支出
A30: 214 | B30: 三、交通运输支出 | C30: =C31 -> 0
A31: 21462 | B31: 车辆通行费安排的支出 | C31: 0
A32: 2146299 | B32: 其他车辆通行费安排的支出
A33: 215 | B33: 四、资源勘探信息等支出 | C33: 0
A34: 21562 | B34: 农网还贷资金支出 | C34: 0
A35: 2156202 | B35: 地方农网还贷资金支出
A36: 216 | B36: 五、商业服务业等支出 | C36: 0
A37: 21660 | B37: 旅游发展基金支出 | C37: 0
A38: 2166004 | B38: 地方旅游开发项目补助
A39: 229 | B39: 六、其他支出 | C39: =C42+C40 -> 2791
A40: 22904 | B40: 其他政府性基金及对应专项债务收入安排的支出 | C40: =C41 -> 573
A41: 2290101 | B41: 其他政府性基金安排的支出 | C41: 573
A42: 22960 | B42: 彩票公益金安排的支出 | C42: =SUM(C43:C47) -> 2218
A43: 2296002 | B43: 用于社会福利的彩票公益金支出 | C43: 1340
A44: 2296003 | B44: 用于体育事业的彩票公益金支出 | C44: 850
A45: 2296005 | B45: 用于红十字事业的彩票公益金支出
A46: 2296006 | B46: 用于残疾人事业的彩票公益金支出 | C46: 28
A47: 2296013 | B47: 用于城乡医疗救助的彩票公益金支出
A48: 232 | B48: 七、债务付息支出 | C48: =C49 -> 6883
A49: 23204 | B49: 地方政府专项债务付息支出 | C49: =SUM(C50:C51) -> 6883
A50: 2320411 | B50: 国有土地使用权出让金债务付息支出 | C50: 6883
A51: 2320431 | B51: 土地储备专项债券付息支出
A52: 233 | B52: 八、债务发行费用支出 | C52: =C53 -> 50
A53: 23304 | B53: 地方政府专项债务发行费用支出 | C53: =SUM(C54:C55) -> 50
A54: 2330411 | B54: 国有土地使用权出让金债务发行费用支出 | C54: 50
A55: 2330431 | B55: 土地储备专项债券发行费用支出
B56: 支出合计 | C56: =C5+C10+C30+C33+C36+C39+C48+C52 -> 174331
A57: 230 | B57: 转移性支出 | C57: =SUM(C58:C61) -> 26110
A58: 23004 | B58: 政府性基金转移支付
A59: 23008 | B59: 调出资金 | C59: 10000
A60: 23009 | B60: 年终结余 | C60: 16110
A61: 23011 | B61: 债务转贷支出
A62: 231 | B62: 债务还本支出 | C62: =C63 -> 30185
A63: 23104 | B63: 地方政府专项债务还本支出 | C63: 30185
B64: 支出总计 | C64: =C56+C57+C62 -> 230626

Sheet 31、政府专项债务限额
A1: 附表31
A2: 全市2020年地方政府专项债务限额表
A3: 单位：万元
A4: 地 区 | B4: 专项债务
A5: 随州市 | B5: 528920
A6: 随州市本级 | B6: 224713
A7: 曾都区 | B7: 60007
A8: 随县 | B8: 121306
A9: 广水市 | B9: 122894
A10: 备注：一、上一年度全市政府性债务限额和余额情况 省财政核定随州市2019年政府性债务限额1417445万元（其中：一般债务限额912174万元、专项债务限额505271万元）。其中市本级政府债务限额为421353万元（其中:一般债务限额208531万元、专项债务限额212822万元）；县区市政府债务限额996092万元（其中:一般债务限额703643万元、专项债务限额292449万元）。 截至2019年底，全市政府债务余额1278937万元（其中:一般债务余额792973万元、专项债务余额485964万元）。其中市本级债务余额357674万元（其中：一般债务余额167339万元、专项债务余额190335万元）；县市区债务余额921263万元（其中：一般债务余额625634万元、专项债务余额295629万元）。 二、上一年度全市政府债券还本付息情况 2019年， 随州市政府性债务共还本付息152901万元（含再融资债券），其中，市本级32354万元，县市区120547万元。全市一般债务还本付息136681万元，其中：市本级26543万元，县市区110138万元。全市专项债务还本付息16220万元，其中：市本级5811万元，县市区10409万元。 三、本年度全市政府债券还本付息预算情况 2020年，随州市共安排政府性债务还本付息预算27.65亿元，其中，市本级7.75亿元，县市区19.9亿元。全市一般债务还本付息18.86亿元，其中：市本级3.41亿元，县市区15.45亿元。全市专项债务还本付息8.79亿元，其中：市本级4.34亿元，县市区4.45亿元。 四、本年度全市政府债券安排情况 债券资金主要围绕“补短板”三年行动计划、生态修复等重大工程和公路、棚户区改造、土地储备等关系全市发展大局的重点项目建设安排使用。

Sheet 32、全市社保基金收入
A1: 附表32
A2: 全市2020年社会保险基金预算收入表
C3: 单位：万元
A4: 收入科目 | B4: 收入项目 | C4: 预算数
B5: 全市社会保险基金收入合计 | C5: =SUM(C6:C13) -> 733954
A6: 10201 | B6: 一、企业职工基本养老保险基金收入 | C6: 287969
A7: 10202 | B7: 二、失业保险基金收入 | C7: 2913
A8: 10203 | B8: 三、城镇职工基本医疗保险基金收入 | C8: 65857
A9: 10204 | B9: 四、工伤保险基金收入 | C9: 2340
A10: 10205 | B10: 五、生育保险基金收入 | C10: 339
A11: 10210 | B11: 六、城乡居民基本养老保险基金收入 | C11: 89990
A12: 10211 | B12: 七、机关事业单位基本养老保险基金收入 | C12: 135452
A13: 10212 | B13: 八、城乡居民基本医疗保险基金收入 | C13: 149094

Sheet 33、全市社保基金支出
A1: 附表33
A2: 全市2020年社会保险基金预算支出表
C3: 单位：万元
A4: 支出科目 | B4: 支出项目 | C4: 预算数
B5: 全市社会保险基金支出合计 | C5: =SUM(C6:C13) -> 696441
A6: 20901 | B6: 一、企业职工基本养老保险基金支出 | C6: 302143
A7: 20902 | B7: 二、失业保险基金支出 | C7: 2081
A8: 20903 | B8: 三、城镇职工基本医疗保险基金支出 | C8: 53508
A9: 20904 | B9: 四、工伤保险基金支出 | C9: 1830
A10: 20905 | B10: 五、生育保险基金支出 | C10: 220
A11: 20910 | B11: 六、城乡居民基本养老保险基金支出 | C11: 55925
A12: 20911 | B12: 七、机关事业单位基本养老保险基金支出 | C12: 135452
A13: 20912 | B13: 八、城乡居民基本医疗保险基金支出 | C13: 145282

Sheet 34、本级社保基金收入
A1: 附表34
A2: 市本级2020年社会保险基金预算收入表
C3: 单位：万元
A4: 收入科目 | B4: 收入项目 | C4: 预算数
B5: 市本级社会保险基金收入合计 | C5: 105555
A6: 10201 | B6: 一、企业职工基本养老保险基金收入 | C6: 53773
A7: 1020101 | B7: 其中：企业职工基本养老保险保险费收入 | C7: 30815
A8: 1020102 | B8: 企业职工基本养老保险基金财政补贴收入 | C8: 10833
A9: 1020103 | B9: 企业职工基本养老保险基金利息收入 | C9: 1900
A10: 10202 | B10: 二、失业保险基金收入 | C10: 1343
A11: 1200201 | B11: 其中：失业保险费收入 | C11: 1215
A12: 1200202 | B12: 失业保险基金财政补贴收入
A13: 1200203 | B13: 失业保险基金利息收入 | C13: 68
A14: 10203 | B14: 三、城镇职工基本医疗保险基金收入（含生育保险） | C14: 24533
A15: 1020301 | B15: 其中：城镇职工基本医疗保险费收入 | C15: 23723
A16: 1020302 | B16: 城镇职工基本医疗保险基金 财政补贴收入
A17: 1020303 | B17: 城镇职工基本医疗保险基金利息收入 | C17: 778
A18: 10204 | B18: 四、工伤保险基金收入 | C18: 842
A19: 1020401 | B19: 其中：工伤保险费收入 | C19: 779
A20: 1020402 | B20: 工伤保险基金 财政补贴收入
A21: 1020403 | B21: 工伤保险基金利息收入 | C21: 63
A22: 10205 | B22: 五、生育保险基金收入
A23: 1020501 | B23: 其中：生育保险费收入
A24: 1020502 | B24: 生育保险基金财政补贴收入
A25: 1020503 | B25: 生育保险基金利息收入
A26: 10210 | B26: 六、城乡居民基本养老保险基金收入
A27: 1021001 | B27: 其中：城乡居民基本养老保险费收入
A28: 1021002 | B28: 城乡居民基本养老保险基金财政补贴收入
A29: 1021003 | B29: 城乡居民基本养老保险基金利息收入
A30: 10211 | B30: 七、机关事业单位基本养老保险基金收入 | C30: 25064
A31: 1021101 | B31: 其中：机关事业单位基本养老保险费收入 | C31: 16849
A32: 1021102 | B32: 机关事业单位基本养老保险基金财政补贴收入 | C32: 7931
A33: 1021103 | B33: 机关事业单位基本养老保险基金利息收入 | C33: 70
A34: 10212 | B34: 八、城乡居民基本医疗保险基金收入
A35: 1021201 | B35: 其中：城乡居民基本医疗保险费收入
A36: 1021202 | B36: 城乡居民基本医疗保险基金 财政补贴收入
A37: 1021203 | B37: 城乡居民基本医疗保险基金利息收入

Sheet 35、本级社保基金支出
A1: 附表35
A2: 市本级2020年社会保险基金预算支出表
C3: 单位：万元
A4: 支出科目 | B4: 支出项目 | C4: 预算数
B5: 市本级社会保险基金支出合计 | C5: 93352
A6: 20901 | B6: 一、企业职工基本养老保险基金支出 | C6: 47534
A7: 2090101 | B7: 其中：基本养老金支出 | C7: 39948
A8: 2090199 | B8: 其他基本养老保险基金支出 | C8: 650
A9: 20902 | B9: 二、失业保险基金支出 | C9: 1341
A10: 2090201 | B10: 其中：失业保险金支出 | C10: 766
A11: 2090299 | B11: 其他失业保险基金支出 | C11: 575
A12: 20903 | B12: 三、城镇职工基本医疗保险基金支出(含生育保险) | C12: 18452
A13: 2090301 | B13: 其中：基本医疗保险待遇支出 | C13: 18413
A14: 2090399 | B14: 其他基本医疗保险基金支出 | C14: 39
A15: 20904 | B15: 四、工伤保险基金支出 | C15: 961
A16: 2090401 | B16: 其中：工伤保险待遇支出 | C16: 961
A17: 2090499 | B17: 其他工伤保险基金支出
A18: 20905 | B18: 五、生育保险基金支出
A19: 2090501 | B19: 其中：生育保险待遇支出
A20: 2090599 | B20: 其他生育保险基金支出
A21: 20910 | B21: 六、城乡居民基本养老保险基金支出
A22: 2091001 | B22: 其中：基本养老金支出
A23: 2091099 | B23: 其他基本养老保险基金支出
A24: 20911 | B24: 七、机关事业单位基本养老保险基金支出 | C24: 25064
A25: 2091101 | B25: 其中：基本养老金支出 | C25: 24824
A26: 2091199 | B26: 其他基本养老保险基金支出 | C26: 240
A27: 20912 | B27: 八、城乡居民基本医疗保险基金支出
A28: 2091201 | B28: 其中：基本医疗保险待遇支出
A29: 2091299 | B29: 其他基本养老保险基金支出

Sheet 36、本级社保基金结余
A1: 附表36
A2: 市本级2020年社会保险基金预算结余表
B3: 单位：万元
A4: 项 目 | B4: 预算数
A5: 市本级社会保险基金年末滚存结余 | B5: 164054
A6: 一、企业职工基本养老保险金年末滚存结余 | B6: 99895
A7: 二、失业保险基金年末滚存结余 | B7: 2529
A8: 三、城镇职工基本医疗保险基金年末滚存结余（含生育保险） | B8: 57159
A9: 四、工伤保险基金年末滚存结余 | B9: 4471
A10: 五、生育保险基金年末滚存结余
A11: 六、城乡居民基本养老保险基金年末结余
A12: 七、机关事业单位基本养老保险基本年末滚存结余
A13: 八、城乡居民基本医疗保险基金支出
A14: 名词解释：社会保险是由政府举办的主要由企业和职工缴费筹资的社会保障计划，其缴费收入是政府重要的财政收入。社会保险基金收入是一种强制性的专款专用的财政收入形式，其收入要专项用于政府社会保险计划的开支。 我国的社会保险基金收入按项目划分可分为基本养老保险基金收入、失业保险基金收入、基本医疗保险基金收入、工伤保险基金收入和生育保险基金收入。其中每个保险基金收入项目中又分为保险费收入、财政补贴收入、其他收入、利息收入。 1、社会保险费收入，是指缴费单位和缴费个人按纳费基数的一定比例分别交纳的养老保险费、失业保险费、医疗保险费等收入。 2、财政补贴收入是指收到的国家财政部门给予的各项社会保险基金的补贴。 3、其他收入包含转移收入、往来业务收入等。 4、社会保险基金支出，是指支付社会保险待遇资金。 5、其它支出包含转移支出、国家规定的政策性支出等。 补充说明：根据《湖北省全面推进生育保险和职工基本医疗保险合并实施意见》（鄂医保发﹝2019﹞42号）文件，2020年开始生育保险和职工基本医疗保险合并实施。

Sheet 37、全市国有资本经营预算收入
A1: 附表37
A2: 全市2020年国有资本经营预算收入表
A3: 编制单位：市国资委 市财政局 | C3: 单位：万元
A4: 科目 | B4: 项 目 | C4: 预算数 | D4: 备注
A5: 1030601 | B5: 一、利润收入 | C5: 5960
A6: 1030602 | B6: 二、股利、股息收入 | C6: 200
A7: 1030603 | B7: 三、产权转让收入 | C7: 230
A8: 103060304 | B8: 国有股权、股份转让收入 | C8: 0
A9: 1030604 | B9: 四、清算收入 | C9: 0
A10: 1030698 | B10: 五、其他国有资本经营收入 | C10: 3127
B11: 市 级 国 有 资 本 经 营 收 入合计 | C11: 9517
A12: 11005 | B12: 国有资本经营预算转移支付收入 | C12: 0
B13: 上年结转收入 | C13: 553
B14: 收 入 总计 | C14: =C11+C12+C13 -> 10070

Sheet 38、全市国有资本经营预算支出
A1: 附表38
A2: 全市2020年国有资本经营预算支出表
A3: 编制单位：市国资委 市财政局 | D3: 单位：万元
A4: 科目 | B4: 项 目 | C4: 预算数 | D4: 备注
A5: 208 | B5: 一、社会保障和就业支出
A6: 223 | B6: 二、国有资本经营预算支出 | C6: 8887
B7: 市 级 国 有 资 本 经 营 支 出合计 | C7: 8887
A8: 230 | B8: 转移性支出 | C8: 1183
B9: 支出总计 | C9: 10070

Sheet 39、本级国有资本经营预算收入
A1: 附表39
A2: 市本级2020年国有资本经营预算收入表
A3: 编制单位：市国资委 市财政局 | C3: 单位：万元
A4: 科目 | B4: 项 目 | C4: 预算数 | D4: 备注
A5: 1030601 | B5: 一、利润收入 | C5: =C6 -> 4730
A6: 103060134 | B6: 其他国有资本经营预算企业利润收入 | C6: =SUM(C7:C17) -> 4730
B7: 随州市金盾押运公司 | C7: 41 | D7: 按2019年预算利润135万元的30%征收。
B8: 随州市城投集团 | C8: 3179 | D8: 按2019年预算利润10595万元的30%征收。
B9: 随州市城建投公司 | C9: 757 | D9: 按2019年预算利润2523万元的30%征收。
B10: 随州市高新投 | C10: 201 | D10: 按2019年预算利润670万元的30%征收。
B11: 随州市交通投资建设有限公司 | C11: 93 | D11: 按2019年预算利润309万元的30%征收。
B12: 随州市金控集团 | C12: 240 | D12: 按2019年预算利润800万元的30%征收。
B13: 随州市建设设计院 | C13: 9 | D13: 按2019年预算利润30万元的30%征收。
B14: 中房集团 | C14: 0 | D14: 按2019年预算利润-61万元的30%征收。
B15: 随州保安服务公司 | C15: 0 | D15: 按2019年预算利润-10万元的30%征收。
B16: 随州鸿运公司 | C16: 10 | D16: 湖北文旅投股利分红10万元。
B17: 其他 | C17: 200 | D17: 不可预见的收入
A18: 1030602 | B18: 二、股利、股息收入 | C18: =SUM(C19:C19) -> 200
A19: 103060203 | B19: 国有参股公司股利、股息收入 | C19: 200 | D19: 齐星车身股利分红200万元。
A20: 1030603 | B20: 三、产权转让收入
A21: 1030604 | B21: 四、清算收入
A22: 1030698 | B22: 五、其他国有资本经营收入
B23: 市 级 国 有 资 本 经 营 收 入合计 | C23: =C5+C18+C20+C21+C22 -> 4930
A24: 11005 | B24: 国有资本经营预算转移支付收入 | C24: 0
B25: 上年结转收入 | C25: 553 | D25: 建投2019年度国有资本超收收入
B26: 收 入 总计 | C26: =C23+C24+C25 -> 5482

Sheet 40、本级国有资本经营预算支出
A1: 附表40
A2: 市本级2020年国有资本经营预算支出表
A3: 编制单位：市国资委 市财政局 | D3: 单位：万元
A4: 科目 | B4: 项 目 | C4: 预算数 | D4: 备注
A5: 208 | B5: 一、社会保障和就业支出 | C5: 0
A6: 20804 | B6: 补充全国社会保障基金 | C6: 0
A7: 2080451 | B7: 国有资本经营预算补充社保基金支出 | C7: 0
A8: 223 | B8: 二、国有资本经营预算支出 | C8: =C9+C10 -> 4583
A9: 22301 | B9: 解决历史遗留问题及改革成本支出 | C9: 200 | D9: 落实市人民政府【2019】11号会议精神，解决齐星集团改制遗留问题及支持其新上三个项目建设
A10: 22399 | B10: 其他国有资本经营预算支出 | C10: =C11 -> 4383
A11: 2239901 | B11: 其他国有资本经营预算支出 | C11: 4383 | D11: 用于城投2384.25万元、建投1120.58万元（含19年结转552.83万元）、高新投150.75万元、交投69.75万元补充注册资本金及城市重点项目建设，增加金控集团注资180万元，解决建筑设计院办公楼维修改造经费6.75万元、金盾押运防弹运钞车购置费30.4万元、鸿运公司办公经费7.5万元、其他150万元，企业重组集中监管费用，国资监管经费50万元。
B12: 市 级 国 有 资 本 经 营 支 出合计 | C12: =C5+C8 -> 4583
A13: 230 | B13: 转移性支出 | C13: =C14 -> 899
A14: 23008 | B14: 调出资金 | C14: 899
A15: 2300803 | B15: 国有资本经营预算调出资金 | C15: 899 | D15: 根据国务院规定，从国有资本经营预算收入中提取19%调入一般公共预算
B16: 支出总计 | C16: =C12+C13 -> 5482

Sheet 41、市本级税费返还和转移支付情况表
A1: 附表41
A2: 市本级2020年一般公共预算税费返还和转移支付明细表
C3: 单位：万元
A4: 科目 | B4: 项 目 | C4: 预算数 | D4: 备注
A5: 110 | B5: 转移性收入 | C5: =C6+C8+C43 -> 148147
A6: 11001 | B6: （一）返还性收入 | C6: =SUM(C7:C7) -> 28518
A7: 1100199 | B7: 其它返还性收入 | C7: 28518
A8: 11002 | B8: （二）一般性转移支付收入 | C8: =SUM(C9:C42) -> 77410
A9: 1100202 | B9: 均衡性转移支付收入 | C9: 2357
A10: 1100207 | B10: 县级基本财力保障机制奖补资金收入 | C10: 10865
A11: 1100208 | B11: 结算补助收入 | C11: -27459
A12: 1100299 | B12: 激励性转移支付收入 | C12: 1672
A13: 11002 | B13: 政策性转移支付收入 | C13: 34341
A14: 1100215 | B14: 成品油税费改革转移支付补助收入 | C14: 3509
A15: 1100220 | B15: 基层公检法司转移支付收入 | C15: 3958
A16: 1100221 | B16: 城乡义务教育转移支付收入 | C16: 734
A17: 1100222 | B17: 基本养老金转移支付收入
A18: 1100225 | B18: 产粮大县奖励资金收入 | C18: 130
A19: 1100226 | B19: 重点生态功能区转移支付收入
A20: 1100227 | B20: 固定数额补助收入 | C20: 16611
A21: 1100228 | B21: 革命老区转移支付收入
A22: 1100241 | B22: 一般公共服务共同财政事权转移支付收入
A23: 1100242 | B23: 外交共同财政事权转移支付收入
A24: 1100243 | B24: 国防支出共同财政事权转移支付收入
A25: 1100244 | B25: 公共安全共同财政事权转移支付收入
A26: 1100245 | B26: 教育共同财政事权转移支付收入
A27: 1100246 | B27: 科学技术共同财政事权转移支付收入
A28: 1100247 | B28: 文化旅游体育与传媒共同财政事权转移支付收入
A29: 1100248 | B29: 社会保障和就业共同财政事权转移支付收入 | C29: 16572
A30: 1100249 | B30: 卫生健康共同财政事权转移支付收入
A31: 1100250 | B31: 节能环保 共同财政事权转移支付收入 | C31: 2813
A32: 1100251 | B32: 城乡社区共同财政事权转移支付收入
A33: 1100252 | B33: 农林水 共同财政事权转移支付收入 | C33: 1307
A34: 1100253 | B34: 交通运输 共同财政事权转移支付收入
A35: 1100254 | B35: 资源勘探信息等共同财政事权转移支付收入
A36: 1100255 | B36: 商业服务业等 共同财政事权转移支付收入
A37: 1100256 | B37: 金融共同财政事权转移支付收入
A38: 1100257 | B38: 自然资源海洋气象等共同财政事权转移支付收入
A39: 1100258 | B39: 住房保障共同财政事权转移支付收入
A40: 1100259 | B40: 粮油物资储备共同财政事权转移支付收入
A41: 1100260 | B41: 其他共同财政事权转移支付收入
A42: 1100299 | B42: 其他一般性转移支付收入 | C42: 10000
A43: 11003 | B43: （三）专项转移支付收入 | C43: =SUM(C44:C63) -> 42219
A44: 1100301 | B44: 一般公共服务 | C44: 1214
A45: 1100302 | B45: 外交
A46: 1100303 | B46: 国防支出 | C46: 217
A47: 1100304 | B47: 公共安全
A48: 1100305 | B48: 教育 | C48: 2642
A49: 1100306 | B49: 科学技术
A50: 1100307 | B50: 文化旅游体育与传媒 | C50: 3322
A51: 1100308 | B51: 社会保障和就业 | C51: 2864
A52: 1100310 | B52: 卫生健康 | C52: 4139
A53: 1100311 | B53: 节能环保 | C53: 2314
A54: 1100312 | B54: 城乡社区 | C54: 848
A55: 1100313 | B55: 农林水 | C55: 8315
A56: 1100314 | B56: 交通运输 | C56: 7620
A57: 1100315 | B57: 资源勘探信息等
A58: 1100316 | B58: 商业服务业等 | C58: 82
A59: 1100317 | B59: 金融
A60: 1100320 | B60: 自然资源海洋气象等 | C60: 531
A61: 1100321 | B61: 住房保障 | C61: 6175
A62: 1100322 | B62: 粮油物资储备 | C62: 1736
A63: 1100399 | B63: 其他收入 | C63: 200
A64: 备注：湖北省实行省管县财政体制，省级直接对县市区分配税费返还和一般性转移支付资金，市级无对税费返还和一般性下转移支付

Sheet 42、市本级政府性基金预算转移支付情况表
A1: 附表42
A2: 市本级2020年政府性基金预算转移支付情况表表
A4: 科目 | B4: 项目 | C4: 预算数 | D4: 备注
A5: 110 | B5: 转移支付收入 | C5: =C6 -> 1888
A6: 11004 | B6: 一、政府性基金转移收入 | C6: =C7+C17 -> 1888
A7: 1100401 | B7: 政府性基金补助收入 | C7: =SUM(C8:C16) -> 1888
B8: 大中型水库移民后期扶持基金补助 | C8: 156
B9: 车辆通行费安排的补助
B10: 基础设施建设和经济发展补助
B11: 地方旅游开发项目补助
B12: 社会福利的彩票公益金补助 | C12: 1004
B13: 体育事业的彩票公益金补助 | C13: 710
B14: 红十字事业的彩票公益金补助
B15: 残疾人事业的彩票公益金补助 | C15: 18
B16: 城乡医疗救助的彩票公益金补助
A17: 1100402 | B17: 政府性基金上解收入
A18: 备注：湖北省实行省管县财政体制，省级直接对县市区分配转移支付资金，市级政府性基金预算无对下转移支付

Sheet 43、市本级三公经费预算表
A2: 财政拨款“三公”经费预算表
A4: 填报单位：随州市本级
A5: 三公总计 | B5: 公务接待费 | C5: 因公出国（境）费 | D5: 公务用车
D8: 合计 | E8: 运行维护费 | F8: 购置费
A9: =B9+C9+D9 -> 2,509.00 | B9: 386.00 | C9: 308.00 | D9: =SUM(E9:F9) -> 1,815.00 | E9: 1,510.00 | F9: 305.00
